[Event "Titled Tuesday Blitz October 18 Late 2022"]
[White "Eisa Mohmood, Alkhoori"]
[Black "Chan, Kim Yew"]
[WhiteFideId "9316116"]
[BlackFideId "5717981"]
[WhiteElo "1245"]
[BlackElo "2206"]
[Result "0-1"]
[Round "10"]
[TimeControl "180+1"]
[Date "2022.10.19"]
[WhiteClock "0:00:02"]
[BlackClock "0:00:09"]

1. e4 {[%clk 0:03:00]}  e5 {[%clk 0:02:59]} 2. Nf3 {[%clk 0:02:57]}  Nf6 {[%clk 0:02:59]} 3. Nxe5 {[%clk 0:02:48]}  d6 {[%clk 0:02:59]} 4. Nxf7 {[%clk 0:02:47]}  Kxf7 {[%clk 0:02:59]} 5. Nc3 {[%clk 0:02:46]}  Qe8 {[%clk 0:02:40]} 6. d4 {[%clk 0:01:57]}  g6 {[%clk 0:02:06]} 7. Bd3 {[%clk 0:01:34]}  Bg7 {[%clk 0:02:04]} 8. O-O {[%clk 0:01:34]}  Rf8 {[%clk 0:02:03]} 9. f4 {[%clk 0:01:34]}  Kg8 {[%clk 0:01:42]} 10. e5 {[%clk 0:01:34]}  Bg4 {[%clk 0:01:10]} 11. Qe1 {[%clk 0:01:04]}  Nfd7 {[%clk 0:01:04]} 12. Nd5 {[%clk 0:00:55]}  Qd8 {[%clk 0:00:35]} 13. h3 {[%clk 0:00:21]}  Be6 {[%clk 0:00:31]} 14. Ne3 {[%clk 0:00:12]}  dxe5 {[%clk 0:00:31]} 15. dxe5 {[%clk 0:00:11]}  Nc5 {[%clk 0:00:25]} 16. Be2 {[%clk 0:00:09]}  Nc6 {[%clk 0:00:23]} 17. c3 {[%clk 0:00:08]}  Nd3 {[%clk 0:00:22]} 18. Bxd3 {[%clk 0:00:08]}  Qxd3 {[%clk 0:00:23]} 19. Qf2 {[%clk 0:00:08]}  Rad8 {[%clk 0:00:23]} 20. Qg3 {[%clk 0:00:07]}  Qe4 {[%clk 0:00:17]} 21. Nd1 {[%clk 0:00:03]}  Rd3 {[%clk 0:00:17]} 22. Nf2 {[%clk 0:00:01]}  Rxg3 {[%clk 0:00:14]} 23. Nxe4 {[%clk 0:00:02]}  Rd3 {[%clk 0:00:11]} 24. Nc5 {[%clk 0:00:03]}  Bc4 {[%clk 0:00:09]} 25. Nxd3 {[%clk 0:00:01]}  Bxd3 {[%clk 0:00:10]} 26. Rd1 {[%clk 0:00:01]}  Bf5 {[%clk 0:00:09]} 27. Rd7 {[%clk 0:00:02]}  Bxd7 {[%clk 0:00:09]} 0-1


[Site "https://www.chess.com"]

[Event "Titled Tuesday Blitz October 18 Late 2022"]
[White "Eljanov, Pavel"]
[Black "Timmermans, Mark"]
[WhiteFideId "14102951"]
[BlackFideId "1026399"]
[WhiteElo "2601"]
[BlackElo "2460"]
[Result "0-1"]
[Round "10"]
[TimeControl "180+1"]
[Date "2022.10.18"]
[WhiteClock "0:00:04"]
[BlackClock "0:00:53"]

1. c4 {[%clk 0:03:00]}  Nf6 {[%clk 0:02:56]} 2. g3 {[%clk 0:03:01]}  e6 {[%clk 0:02:56]} 3. Bg2 {[%clk 0:03:01]}  d5 {[%clk 0:02:57]} 4. Nf3 {[%clk 0:03:01]}  Be7 {[%clk 0:02:57]} 5. O-O {[%clk 0:03:02]}  O-O {[%clk 0:02:58]} 6. d3 {[%clk 0:03:02]}  b6 {[%clk 0:02:57]} 7. cxd5 {[%clk 0:02:57]}  Nxd5 {[%clk 0:02:58]} 8. e4 {[%clk 0:02:55]}  Nf6 {[%clk 0:02:57]} 9. Re1 {[%clk 0:02:51]}  Bb7 {[%clk 0:02:56]} 10. Nc3 {[%clk 0:02:50]}  c5 {[%clk 0:02:56]} 11. d4 {[%clk 0:02:47]}  cxd4 {[%clk 0:02:55]} 12. Nxd4 {[%clk 0:02:47]}  Nfd7 {[%clk 0:02:31]} 13. e5 {[%clk 0:02:22]}  Bxg2 {[%clk 0:02:29]} 14. Kxg2 {[%clk 0:02:23]}  Qc7 {[%clk 0:02:02]} 15. Qf3 {[%clk 0:01:26]}  Nxe5 {[%clk 0:02:01]} 16. Qxa8 {[%clk 0:01:21]}  Nbc6 {[%clk 0:02:00]} 17. Ndb5 {[%clk 0:01:09]}  Qd7 {[%clk 0:02:00]} 18. Rd1 {[%clk 0:01:09]}  Rxa8 {[%clk 0:02:00]} 19. Rxd7 {[%clk 0:01:08]}  Nxd7 {[%clk 0:02:01]} 20. Bf4 {[%clk 0:01:07]}  Nb4 {[%clk 0:01:36]} 21. Rd1 {[%clk 0:01:04]}  Nf6 {[%clk 0:01:36]} 22. Bg5 {[%clk 0:00:51]}  a6 {[%clk 0:01:34]} 23. a3 {[%clk 0:00:23]}  axb5 {[%clk 0:01:27]} 24. axb4 {[%clk 0:00:22]}  Bxb4 {[%clk 0:01:26]} 25. Bxf6 {[%clk 0:00:20]}  gxf6 {[%clk 0:01:26]} 26. Nxb5 {[%clk 0:00:21]}  Ra2 {[%clk 0:01:23]} 27. Rb1 {[%clk 0:00:14]}  Bc5 {[%clk 0:01:20]} 28. Nc3 {[%clk 0:00:14]}  Ra7 {[%clk 0:01:16]} 29. b4 {[%clk 0:00:14]}  Bd4 {[%clk 0:01:16]} 30. Nb5 {[%clk 0:00:13]}  Rd7 {[%clk 0:01:13]} 31. Rd1 {[%clk 0:00:14]}  e5 {[%clk 0:01:13]} 32. Kf3 {[%clk 0:00:13]}  f5 {[%clk 0:01:11]} 33. Nxd4 {[%clk 0:00:12]}  exd4 {[%clk 0:01:10]} 34. Kf4 {[%clk 0:00:12]}  Rd5 {[%clk 0:01:10]} 35. Rc1 {[%clk 0:00:07]}  Kg7 {[%clk 0:01:09]} 36. f3 {[%clk 0:00:05]}  h6 {[%clk 0:01:04]} 37. h4 {[%clk 0:00:04]}  Kg6 {[%clk 0:00:53]} 0-1


[Site "https://www.chess.com"]

[Event "Titled Tuesday Blitz October 18 Late 2022"]
[White "Ezat, Mohamed"]
[Black "Ardila, Oscar Humberto"]
[WhiteFideId "10600906"]
[BlackFideId "4404742"]
[WhiteElo "2386"]
[BlackElo "1898"]
[Result "1-0"]
[Round "10"]
[TimeControl "180+1"]
[Date "2022.10.19"]
[WhiteClock "0:00:11"]
[BlackClock "0:00:01"]

1. d4 {[%clk 0:02:17]}  Nf6 {[%clk 0:03:00]} 2. c4 {[%clk 0:02:14]}  g6 {[%clk 0:03:00]} 3. Nc3 {[%clk 0:02:13]}  Bg7 {[%clk 0:03:00]} 4. e4 {[%clk 0:02:13]}  d6 {[%clk 0:03:00]} 5. Be2 {[%clk 0:02:11]}  O-O {[%clk 0:03:00]} 6. Bg5 {[%clk 0:02:10]}  Nbd7 {[%clk 0:03:00]} 7. Qd2 {[%clk 0:02:07]}  c6 {[%clk 0:03:00]} 8. h4 {[%clk 0:02:03]}  h5 {[%clk 0:02:59]} 9. f3 {[%clk 0:00:55]}  e5 {[%clk 0:02:51]} 10. d5 {[%clk 0:00:54]}  c5 {[%clk 0:02:46]} 11. Nh3 {[%clk 0:00:52]}  a6 {[%clk 0:02:44]} 12. Nf2 {[%clk 0:00:51]}  Qc7 {[%clk 0:02:35]} 13. g4 {[%clk 0:00:50]}  Rb8 {[%clk 0:02:31]} 14. Rg1 {[%clk 0:00:47]}  Re8 {[%clk 0:02:23]} 15. a3 {[%clk 0:00:47]}  b5 {[%clk 0:02:11]} 16. cxb5 {[%clk 0:00:45]}  axb5 {[%clk 0:02:11]} 17. Bxb5 {[%clk 0:00:46]}  Qb6 {[%clk 0:02:09]} 18. Bxf6 {[%clk 0:00:41]}  Nxf6 {[%clk 0:02:06]} 19. Bxe8 {[%clk 0:00:39]}  Nxe8 {[%clk 0:02:07]} 20. gxh5 {[%clk 0:00:38]}  Qxb2 {[%clk 0:02:04]} 21. Qxb2 {[%clk 0:00:37]}  Rxb2 {[%clk 0:02:04]} 22. hxg6 {[%clk 0:00:37]}  fxg6 {[%clk 0:02:04]} 23. a4 {[%clk 0:00:35]}  Ba6 {[%clk 0:02:03]} 24. Nb5 {[%clk 0:00:35]}  Kf7 {[%clk 0:01:53]} 25. Ng4 {[%clk 0:00:32]}  Ke7 {[%clk 0:01:32]} 26. Ne3 {[%clk 0:00:31]}  Bh6 {[%clk 0:01:29]} 27. Nc4 {[%clk 0:00:32]}  Rh2 {[%clk 0:01:24]} 28. Rb1 {[%clk 0:00:23]}  Bf4 {[%clk 0:01:02]} 29. Kd1 {[%clk 0:00:22]}  Rxh4 {[%clk 0:00:58]} 30. Rxg6 {[%clk 0:00:21]}  Rh1+ {[%clk 0:00:54]} 31. Kc2 {[%clk 0:00:21]}  Rh2+ {[%clk 0:00:54]} 32. Kb3 {[%clk 0:00:22]}  Rh3 {[%clk 0:00:54]} 33. Rf1 {[%clk 0:00:20]}  Kf7 {[%clk 0:00:35]} 34. Re6 {[%clk 0:00:20]}  Bxb5 {[%clk 0:00:25]} 35. axb5 {[%clk 0:00:19]}  Nc7 {[%clk 0:00:25]} 36. Nxd6+ {[%clk 0:00:19]}  Kf8 {[%clk 0:00:17]} 37. Rg6 {[%clk 0:00:19]}  Ke7 {[%clk 0:00:15]} 38. b6 {[%clk 0:00:18]}  Na6 {[%clk 0:00:08]} 39. Re6+ {[%clk 0:00:18]}  Kd7 {[%clk 0:00:08]} 40. Kc4 {[%clk 0:00:15]}  Rh2 {[%clk 0:00:08]} 41. Kb5 {[%clk 0:00:13]}  Ra2 {[%clk 0:00:06]} 42. Nc4 {[%clk 0:00:11]}  Nb4 {[%clk 0:00:04]} 43. Rh1 {[%clk 0:00:11]}  Kd8 {[%clk 0:00:01]} 44. Rh8+ {[%clk 0:00:11]}  Kd7 {[%clk 0:00:02]} 45. Rh7+ {[%clk 0:00:11]}  Kd8 {[%clk 0:00:02]} 46. Rg6 {[%clk 0:00:12]}  Nd3 {[%clk 0:00:01]} 47. Rg8# {[%clk 0:00:11]} 1-0


[Site "https://www.chess.com"]

[Event "Titled Tuesday Blitz October 18 Late 2022"]
[White "Fajdetic, Hrvoje"]
[Black "Fernandez De La Vara, Arnaldo"]
[WhiteFideId "14501945"]
[BlackFideId "3518388"]
[WhiteElo "2172"]
[BlackElo "2387"]
[Result "1-0"]
[Round "10"]
[TimeControl "180+1"]
[Date "2022.10.19"]
[WhiteClock "0:00:22"]
[BlackClock "0:00:03"]

1. d4 {[%clk 0:03:00]}  c5 {[%clk 0:02:56]} 2. d5 {[%clk 0:03:00]}  Nf6 {[%clk 0:02:56]} 3. Nc3 {[%clk 0:03:00]}  a6 {[%clk 0:02:56]} 4. a4 {[%clk 0:03:00]}  d6 {[%clk 0:02:57]} 5. e4 {[%clk 0:03:00]}  g6 {[%clk 0:02:57]} 6. Bf4 {[%clk 0:03:00]}  Bg7 {[%clk 0:02:58]} 7. Be2 {[%clk 0:02:59]}  O-O {[%clk 0:02:58]} 8. Nf3 {[%clk 0:02:59]}  Nbd7 {[%clk 0:02:59]} 9. O-O {[%clk 0:02:56]}  Ne8 {[%clk 0:02:59]} 10. Re1 {[%clk 0:02:51]}  Rb8 {[%clk 0:02:58]} 11. Bf1 {[%clk 0:02:50]}  Nc7 {[%clk 0:02:58]} 12. e5 {[%clk 0:02:50]}  dxe5 {[%clk 0:02:58]} 13. Nxe5 {[%clk 0:02:50]}  Nxe5 {[%clk 0:02:58]} 14. Bxe5 {[%clk 0:02:50]}  b5 {[%clk 0:02:48]} 15. axb5 {[%clk 0:02:48]}  axb5 {[%clk 0:02:49]} 16. Bxc7 {[%clk 0:02:37]}  Qxc7 {[%clk 0:02:47]} 17. Nxb5 {[%clk 0:02:37]}  Qd7 {[%clk 0:02:35]} 18. Ra7 {[%clk 0:02:34]}  Rb7 {[%clk 0:02:35]} 19. Rxb7 {[%clk 0:02:33]}  Bxb7 {[%clk 0:02:36]} 20. Nc3 {[%clk 0:02:24]}  Rd8 {[%clk 0:02:33]} 21. Bc4 {[%clk 0:02:23]}  Bxc3 {[%clk 0:02:25]} 22. bxc3 {[%clk 0:02:24]}  Bxd5 {[%clk 0:02:22]} 23. Bxd5 {[%clk 0:02:15]}  Qxd5 {[%clk 0:02:23]} 24. Qxd5 {[%clk 0:02:14]}  Rxd5 {[%clk 0:02:24]} 25. Kf1 {[%clk 0:02:10]}  e6 {[%clk 0:02:10]} 26. Re4 {[%clk 0:02:04]}  Kg7 {[%clk 0:02:02]} 27. Ke2 {[%clk 0:02:04]}  Kf6 {[%clk 0:02:02]} 28. f4 {[%clk 0:02:04]}  h5 {[%clk 0:01:53]} 29. g3 {[%clk 0:02:03]}  h4 {[%clk 0:01:52]} 30. c4 {[%clk 0:01:51]}  Rd7 {[%clk 0:01:44]} 31. Re5 {[%clk 0:01:49]}  hxg3 {[%clk 0:01:27]} 32. hxg3 {[%clk 0:01:47]}  Rc7 {[%clk 0:01:28]} 33. Ke3 {[%clk 0:01:42]}  Ke7 {[%clk 0:01:27]} 34. g4 {[%clk 0:01:41]}  f6 {[%clk 0:01:22]} 35. Re4 {[%clk 0:01:41]}  Kd6 {[%clk 0:01:19]} 36. g5 {[%clk 0:01:38]}  fxg5 {[%clk 0:01:08]} 37. fxg5 {[%clk 0:01:38]}  e5 {[%clk 0:01:09]} 38. Rh4 {[%clk 0:01:36]}  Ke6 {[%clk 0:01:09]} 39. Ke4 {[%clk 0:01:33]}  Rd7 {[%clk 0:01:06]} 40. c3 {[%clk 0:01:33]}  Rd1 {[%clk 0:01:05]} 41. Rh8 {[%clk 0:01:19]}  Re1+ {[%clk 0:01:03]} 42. Kf3 {[%clk 0:01:16]}  Kf5 {[%clk 0:01:03]} 43. Rc8 {[%clk 0:01:15]}  Kxg5 {[%clk 0:00:43]} 44. Rxc5 {[%clk 0:01:14]}  Kf5 {[%clk 0:00:44]} 45. Rc8 {[%clk 0:01:09]}  Rc1 {[%clk 0:00:42]} 46. Rf8+ {[%clk 0:01:07]}  Ke6 {[%clk 0:00:41]} 47. Re8+ {[%clk 0:01:07]}  Kf6 {[%clk 0:00:41]} 48. Rf8+ {[%clk 0:01:07]}  Ke7 {[%clk 0:00:41]} 49. Rg8 {[%clk 0:01:06]}  Kf7 {[%clk 0:00:41]} 50. Rc8 {[%clk 0:01:05]}  Rf1+ {[%clk 0:00:15]} 51. Ke4 {[%clk 0:01:04]}  Re1+ {[%clk 0:00:16]} 52. Kd5 {[%clk 0:01:01]}  g5 {[%clk 0:00:16]} 53. c5 {[%clk 0:00:57]}  g4 {[%clk 0:00:15]} 54. Rb8 {[%clk 0:00:47]}  g3 {[%clk 0:00:10]} 55. Rb2 {[%clk 0:00:47]}  Ke7 {[%clk 0:00:04]} 56. Rg2 {[%clk 0:00:44]}  Re3 {[%clk 0:00:04]} 57. c6 {[%clk 0:00:42]}  Kd8 {[%clk 0:00:02]} 58. Kd6 {[%clk 0:00:38]}  e4 {[%clk 0:00:03]} 59. c4 {[%clk 0:00:29]}  Rf3 {[%clk 0:00:03]} 60. Ra2 {[%clk 0:00:24]}  Rf7 {[%clk 0:00:03]} 61. Ra8# {[%clk 0:00:22]} 1-0


[Site "https://www.chess.com"]

[Event "Titled Tuesday Blitz October 18 Late 2022"]
[White "Firouzja, Alireza"]
[Black "Maksimovic, Bojan"]
[WhiteFideId "12573981"]
[BlackFideId "14408120"]
[WhiteElo "2903"]
[BlackElo "2447"]
[Result "1/2-1/2"]
[Round "10"]
[TimeControl "180+1"]
[Date "2022.10.18"]
[WhiteClock "0:00:04"]
[BlackClock "0:00:06"]

1. d4 {[%clk 0:03:00]}  Nf6 {[%clk 0:03:00]} 2. c4 {[%clk 0:03:01]}  g6 {[%clk 0:03:00]} 3. Nc3 {[%clk 0:03:01]}  Bg7 {[%clk 0:03:01]} 4. e4 {[%clk 0:03:02]}  d6 {[%clk 0:03:02]} 5. h3 {[%clk 0:02:58]}  Nbd7 {[%clk 0:02:59]} 6. Nf3 {[%clk 0:02:55]}  e5 {[%clk 0:02:58]} 7. Be3 {[%clk 0:02:55]}  O-O {[%clk 0:02:55]} 8. d5 {[%clk 0:02:55]}  Nc5 {[%clk 0:02:52]} 9. Nd2 {[%clk 0:02:55]}  Nh5 {[%clk 0:02:50]} 10. b4 {[%clk 0:02:54]}  Nd7 {[%clk 0:02:49]} 11. c5 {[%clk 0:02:42]}  a5 {[%clk 0:01:31]} 12. cxd6 {[%clk 0:02:35]}  cxd6 {[%clk 0:01:32]} 13. b5 {[%clk 0:02:35]}  b6 {[%clk 0:01:27]} 14. Nc4 {[%clk 0:02:26]}  Nc5 {[%clk 0:01:27]} 15. g3 {[%clk 0:02:22]}  Bf6 {[%clk 0:01:17]} 16. Be2 {[%clk 0:02:19]}  Ng7 {[%clk 0:01:17]} 17. h4 {[%clk 0:02:09]}  h5 {[%clk 0:01:17]} 18. Qc2 {[%clk 0:01:49]}  Be7 {[%clk 0:01:17]} 19. Na4 {[%clk 0:01:50]}  Nxa4 {[%clk 0:01:10]} 20. Qxa4 {[%clk 0:01:50]}  Rb8 {[%clk 0:01:10]} 21. O-O-O {[%clk 0:01:09]}  f5 {[%clk 0:01:11]} 22. f3 {[%clk 0:00:57]}  Bd7 {[%clk 0:00:59]} 23. Kb1 {[%clk 0:00:51]}  Ne8 {[%clk 0:00:55]} 24. Rc1 {[%clk 0:00:46]}  f4 {[%clk 0:00:55]} 25. gxf4 {[%clk 0:00:44]}  exf4 {[%clk 0:00:56]} 26. Bf2 {[%clk 0:00:45]}  Bf6 {[%clk 0:00:53]} 27. Bd3 {[%clk 0:00:43]}  Kh7 {[%clk 0:00:47]} 28. Rhg1 {[%clk 0:00:41]}  Be5 {[%clk 0:00:48]} 29. Nxe5 {[%clk 0:00:37]}  dxe5 {[%clk 0:00:49]} 30. Rg5 {[%clk 0:00:37]}  Qe7 {[%clk 0:00:48]} 31. Be1 {[%clk 0:00:33]}  Nd6 {[%clk 0:00:45]} 32. Bc3 {[%clk 0:00:33]}  Nf7 {[%clk 0:00:44]} 33. Rgg1 {[%clk 0:00:33]}  Rbc8 {[%clk 0:00:44]} 34. Bb2 {[%clk 0:00:31]}  Qxh4 {[%clk 0:00:44]} 35. Qa3 {[%clk 0:00:30]}  Qf6 {[%clk 0:00:30]} 36. Rc6 {[%clk 0:00:29]}  Bxc6 {[%clk 0:00:29]} 37. bxc6 {[%clk 0:00:30]}  Nd6 {[%clk 0:00:27]} 38. Qb3 {[%clk 0:00:24]}  b5 {[%clk 0:00:26]} 39. Qc3 {[%clk 0:00:21]}  Rfe8 {[%clk 0:00:26]} 40. Qxa5 {[%clk 0:00:21]}  Nc4 {[%clk 0:00:26]} 41. Bxc4 {[%clk 0:00:20]}  bxc4 {[%clk 0:00:27]} 42. Qc5 {[%clk 0:00:21]}  Rb8 {[%clk 0:00:27]} 43. Ka1 {[%clk 0:00:21]}  Qh4 {[%clk 0:00:16]} 44. c7 {[%clk 0:00:14]}  Rxb2 {[%clk 0:00:15]} 45. Kxb2 {[%clk 0:00:13]}  Qh2+ {[%clk 0:00:16]} 46. Kc3 {[%clk 0:00:06]}  Qxa2 {[%clk 0:00:05]} 47. Qb4 {[%clk 0:00:04]}  Qe2 {[%clk 0:00:04]} 48. Rc1 {[%clk 0:00:02]}  Qxf3+ {[%clk 0:00:03]} 49. Kb2 {[%clk 0:00:03]}  Qxe4 {[%clk 0:00:03]} 50. Rxc4 {[%clk 0:00:03]}  Qxd5 {[%clk 0:00:03]} 51. c8=Q {[%clk 0:00:03]}  Rxc8 {[%clk 0:00:03]} 52. Rxc8 {[%clk 0:00:04]}  Kh6 {[%clk 0:00:03]} 53. Rc5 {[%clk 0:00:03]}  Qg2+ {[%clk 0:00:03]} 54. Kc1 {[%clk 0:00:03]}  Qf1+ {[%clk 0:00:03]} 55. Kc2 {[%clk 0:00:03]}  Qe2+ {[%clk 0:00:03]} 56. Qd2 {[%clk 0:00:03]}  Qe4+ {[%clk 0:00:03]} 57. Qd3 {[%clk 0:00:03]}  Qa4+ {[%clk 0:00:03]} 58. Kd2 {[%clk 0:00:04]}  Qb4+ {[%clk 0:00:03]} 59. Qc3 {[%clk 0:00:04]}  Qxc3+ {[%clk 0:00:01]} 60. Kxc3 {[%clk 0:00:05]}  Kg5 {[%clk 0:00:02]} 61. Kd3 {[%clk 0:00:04]}  Kg4 {[%clk 0:00:02]} 62. Rxe5 {[%clk 0:00:03]}  h4 {[%clk 0:00:02]} 63. Ke2 {[%clk 0:00:04]}  g5 {[%clk 0:00:02]} 64. Kf2 {[%clk 0:00:04]}  h3 {[%clk 0:00:02]} 65. Re8 {[%clk 0:00:04]}  Kf5 {[%clk 0:00:02]} 66. Rh8 {[%clk 0:00:03]}  g4 {[%clk 0:00:02]} 67. Rh5+ {[%clk 0:00:03]}  Kg6 {[%clk 0:00:02]} 68. Rh8 {[%clk 0:00:03]}  g3+ {[%clk 0:00:02]} 69. Kf3 {[%clk 0:00:03]}  h2 {[%clk 0:00:03]} 70. Kg2 {[%clk 0:00:03]}  Kg5 {[%clk 0:00:03]} 71. Rh7 {[%clk 0:00:03]}  Kg4 {[%clk 0:00:04]} 72. Rg7+ {[%clk 0:00:04]}  Kf5 {[%clk 0:00:04]} 73. Rf7+ {[%clk 0:00:04]}  Kg4 {[%clk 0:00:05]} 74. Rg7+ {[%clk 0:00:05]}  Kf5 {[%clk 0:00:05]} 75. Rf7+ {[%clk 0:00:05]}  Kg4 {[%clk 0:00:06]} 76. Rg7+ {[%clk 0:00:04]} 1/2-1/2


[Site "https://www.chess.com"]

[Event "Titled Tuesday Blitz October 18 Late 2022"]
[White "Galchenko, Matvey"]
[Black "Zou, Chen"]
[WhiteFideId "24175480"]
[BlackFideId "8610959"]
[WhiteElo "2423"]
[BlackElo "2325"]
[Result "1-0"]
[Round "10"]
[TimeControl "180+1"]
[Date "2022.10.18"]
[WhiteClock "0:00:56"]
[BlackClock "0:00:01"]

1. f4 {[%clk 0:02:59]}  d6 {[%clk 0:02:53]} 2. Nf3 {[%clk 0:02:58]}  Nf6 {[%clk 0:02:53]} 3. g3 {[%clk 0:02:58]}  g6 {[%clk 0:02:52]} 4. Bg2 {[%clk 0:02:58]}  Bg7 {[%clk 0:02:52]} 5. d3 {[%clk 0:02:58]}  O-O {[%clk 0:02:53]} 6. O-O {[%clk 0:02:59]}  Nbd7 {[%clk 0:02:52]} 7. Nc3 {[%clk 0:03:00]}  c6 {[%clk 0:02:44]} 8. e4 {[%clk 0:03:01]}  Qc7 {[%clk 0:02:43]} 9. h3 {[%clk 0:03:01]}  b5 {[%clk 0:02:42]} 10. a3 {[%clk 0:03:01]}  Bb7 {[%clk 0:02:39]} 11. g4 {[%clk 0:03:01]}  a5 {[%clk 0:02:39]} 12. Ne2 {[%clk 0:02:59]}  b4 {[%clk 0:02:35]} 13. Ng3 {[%clk 0:02:57]}  Nc5 {[%clk 0:02:11]} 14. g5 {[%clk 0:02:50]}  Nfd7 {[%clk 0:02:10]} 15. h4 {[%clk 0:02:51]}  b3 {[%clk 0:02:04]} 16. c4 {[%clk 0:02:42]}  Rab8 {[%clk 0:01:48]} 17. h5 {[%clk 0:02:40]}  Na4 {[%clk 0:01:47]} 18. Qxb3 {[%clk 0:02:33]}  Ndc5 {[%clk 0:01:45]} 19. Qc2 {[%clk 0:02:32]}  Bc8 {[%clk 0:01:45]} 20. Rb1 {[%clk 0:02:21]}  Nb3 {[%clk 0:01:31]} 21. Be3 {[%clk 0:02:20]}  Bg4 {[%clk 0:01:22]} 22. Nh2 {[%clk 0:02:00]}  Bxh5 {[%clk 0:01:23]} 23. Nxh5 {[%clk 0:02:00]}  gxh5 {[%clk 0:01:23]} 24. Nf3 {[%clk 0:01:56]}  Rb7 {[%clk 0:00:46]} 25. f5 {[%clk 0:01:52]}  Rfb8 {[%clk 0:00:45]} 26. f6 {[%clk 0:01:51]}  exf6 {[%clk 0:00:46]} 27. gxf6 {[%clk 0:01:52]}  Bxf6 {[%clk 0:00:46]} 28. d4 {[%clk 0:01:48]}  Kh8 {[%clk 0:00:44]} 29. e5 {[%clk 0:01:47]}  dxe5 {[%clk 0:00:41]} 30. dxe5 {[%clk 0:01:48]}  Bxe5 {[%clk 0:00:42]} 31. Nxe5 {[%clk 0:01:33]}  Qxe5 {[%clk 0:00:43]} 32. Bf4 {[%clk 0:01:32]}  Qc5+ {[%clk 0:00:41]} 33. Kh1 {[%clk 0:01:31]}  Rg8 {[%clk 0:00:40]} 34. Bh2 {[%clk 0:01:29]}  h4 {[%clk 0:00:17]} 35. Rf5 {[%clk 0:01:26]}  Rxg2 {[%clk 0:00:08]} 36. Kxg2 {[%clk 0:01:20]}  Nd4 {[%clk 0:00:08]} 37. Rxc5 {[%clk 0:01:18]}  Nxc2 {[%clk 0:00:08]} 38. Be5+ {[%clk 0:01:15]}  Kg8 {[%clk 0:00:08]} 39. Rxc6 {[%clk 0:01:14]}  f6 {[%clk 0:00:09]} 40. Bxf6 {[%clk 0:01:13]}  Ne3+ {[%clk 0:00:04]} 41. Kh3 {[%clk 0:01:13]}  Nf5 {[%clk 0:00:03]} 42. b3 {[%clk 0:01:10]}  Nb6 {[%clk 0:00:01]} 43. Rf1 {[%clk 0:01:10]}  Ng3 {[%clk 0:00:01]} 44. Rf4 {[%clk 0:01:10]}  Nh5 {[%clk 0:00:01]} 45. Rg4+ {[%clk 0:01:07]}  Kf7 {[%clk 0:00:01]} 46. Bxh4 {[%clk 0:01:07]}  Nd7 {[%clk 0:00:01]} 47. Re4 {[%clk 0:00:55]}  Rxb3+ {[%clk 0:00:01]} 48. Kh2 {[%clk 0:00:56]}  Rb2+ {[%clk 0:00:02]} 49. Kg1 {[%clk 0:00:56]}  Rb1+ {[%clk 0:00:02]} 50. Re1 {[%clk 0:00:56]}  Rb3 {[%clk 0:00:02]} 51. Re7+ {[%clk 0:00:56]}  Kf8 {[%clk 0:00:01]} 52. Rc8# {[%clk 0:00:56]} 1-0


[Site "https://www.chess.com"]

[Event "Titled Tuesday Blitz October 18 Late 2022"]
[White "Golubev, Mikhail"]
[Black "Pavlidou, Ekaterini"]
[WhiteFideId "14100983"]
[BlackFideId "4213262"]
[WhiteElo "2374"]
[BlackElo "2125"]
[Result "0-1"]
[Round "10"]
[TimeControl "180+1"]
[Date "2022.10.19"]
[WhiteClock "0:00:17"]
[BlackClock "0:01:34"]

1. e4 {[%clk 0:03:00]}  c5 {[%clk 0:02:59]} 2. Nf3 {[%clk 0:02:59]}  e6 {[%clk 0:02:59]} 3. d4 {[%clk 0:02:59]}  cxd4 {[%clk 0:03:00]} 4. Nxd4 {[%clk 0:02:59]}  Nf6 {[%clk 0:03:00]} 5. Nc3 {[%clk 0:02:59]}  Nc6 {[%clk 0:03:01]} 6. Ndb5 {[%clk 0:02:59]}  Bc5 {[%clk 0:03:01]} 7. Bf4 {[%clk 0:02:54]}  O-O {[%clk 0:03:01]} 8. Bd6 {[%clk 0:02:33]}  Bxd6 {[%clk 0:02:59]} 9. Nxd6 {[%clk 0:02:26]}  b5 {[%clk 0:02:44]} 10. Ndxb5 {[%clk 0:02:17]}  Rb8 {[%clk 0:02:43]} 11. Rb1 {[%clk 0:02:13]}  d5 {[%clk 0:02:43]} 12. exd5 {[%clk 0:02:09]}  exd5 {[%clk 0:02:42]} 13. Nd4 {[%clk 0:02:03]}  Re8+ {[%clk 0:02:35]} 14. Be2 {[%clk 0:02:01]}  Nxd4 {[%clk 0:02:30]} 15. Qxd4 {[%clk 0:02:01]}  Ba6 {[%clk 0:02:29]} 16. Kf1 {[%clk 0:01:17]}  Rxe2 {[%clk 0:01:56]} 17. Nxe2 {[%clk 0:01:18]}  Qe7 {[%clk 0:01:54]} 18. Re1 {[%clk 0:01:07]}  Re8 {[%clk 0:01:53]} 19. Qd1 {[%clk 0:00:47]}  Ng4 {[%clk 0:01:49]} 20. h3 {[%clk 0:00:38]}  Nxf2 {[%clk 0:01:42]} 21. Qd4 {[%clk 0:00:17]}  Nxh1 {[%clk 0:01:34]} 0-1


[Site "https://www.chess.com"]